[Event "2026 Biel Blitz Open"]
[Site "Biel, CH"]
[Date "2026.07.19"]
[Round "2"]
[White "Gloeckler, Christian"]
[Black "Schweizer, Samuel"]
[Result "1-0"]
[Board "6"]
[TimeControl "180+2"]
[WhiteFideId "34608966"]
[BlackFideId "1325353"]
[WhiteElo "2513"]
[BlackElo "2006"]
[WhiteTitle "IM"]
[WhiteClock "0:02:15"]
[BlackClock "0:01:14"]
[Variant "Standard"]
[EndDate "2026.07.19"]
[EndTime "12:04:38"]

1. e4 {[%clk 0:03:02]}  c5 {[%clk 0:02:52]} 2. Nf3 {[%clk 0:03:02]}  e6 {[%clk 0:02:52]} 3. d4 {[%clk 0:03:03]}  cxd4 {[%clk 0:02:52]}
4. Nxd4 {[%clk 0:03:04]}  a6 {[%clk 0:02:52]} 5. Be2 {[%clk 0:03:04]}  Qc7 {[%clk 0:02:52]} 6. Nc3 {[%clk 0:03:04]}  Nf6 {[%clk 0:02:52]}
7. Qd3 {[%clk 0:03:05]}  b5 {[%clk 0:02:42]} 8. O-O {[%clk 0:03:04]}  Bb7 {[%clk 0:02:43]} 9. Re1 {[%clk 0:02:56]}  Bc5 {[%clk 0:02:43]}
10. a3 {[%clk 0:02:53]}  d6 {[%clk 0:02:40]} 11. Nb3 {[%clk 0:02:43]}  Bb6 {[%clk 0:02:40]} 12. Qg3 {[%clk 0:02:42]}  Rg8 {[%clk 0:02:34]}
13. Bxb5+ {[%clk 0:02:34]}  axb5 {[%clk 0:02:30]} 14. Nxb5 {[%clk 0:02:34]}  Qd7 {[%clk 0:02:17]} 15. Nxd6+ {[%clk 0:02:31]}  Ke7 {[%clk 0:02:17]}
16. e5 {[%clk 0:02:29]}  Nc6 {[%clk 0:02:11]} 17. exf6+ {[%clk 0:02:27]}  gxf6 {[%clk 0:02:11]} 18. Nf5+ {[%clk 0:02:28]}  Kd8 {[%clk 0:02:00]}
19. Qxg8+ {[%clk 0:02:28]}  Kc7 {[%clk 0:02:01]} 20. Qg3+ {[%clk 0:02:28]}  e5 {[%clk 0:02:01]} 21. Ne3 {[%clk 0:02:23]}  Rd8 {[%clk 0:01:57]}
22. Bd2 {[%clk 0:02:22]}  Nd4 {[%clk 0:01:55]} 23. Bc3 {[%clk 0:02:20]}  Nf5 {[%clk 0:01:50]} 24. Nxf5 {[%clk 0:02:16]}  Qxf5 {[%clk 0:01:50]}
25. Bxe5+ {[%clk 0:02:16]}  Kc8 {[%clk 0:01:47]} 26. Qc3+ {[%clk 0:02:14]}  Kd7 {[%clk 0:01:40]} 27. Rad1+ {[%clk 0:02:15]}  Ke8 {[%clk 0:01:14]}
28. Bd6+ {[%clk 0:02:15]} 1-0

[Event "2026 Biel Blitz Open"]
[Site "Biel, CH"]
[Date "2026.07.19"]
[Round "2"]
[White "Mikavica, Mirko"]
[Black "Aronyak Ghosh"]
[Result "0-1"]
[Board "7"]
[TimeControl "180+2"]
[WhiteFideId "908657"]
[BlackFideId "25072846"]
[WhiteElo "2015"]
[BlackElo "2488"]
[BlackTitle "IM"]
[WhiteClock "0:00:12"]
[BlackClock "0:01:26"]
[Variant "Standard"]
[EndDate "2026.07.19"]
[EndTime "12:06:12"]

1. d4 {[%clk 0:03:03]}  Nf6 {[%clk 0:03:03]} 2. c4 {[%clk 0:03:04]}  e6 {[%clk 0:03:03]} 3. Nc3 {[%clk 0:03:06]}  Bb4 {[%clk 0:03:03]}
4. Nf3 {[%clk 0:03:05]}  b6 {[%clk 0:02:57]} 5. g3 {[%clk 0:03:06]}  Bxc3+ {[%clk 0:02:50]} 6. bxc3 {[%clk 0:03:07]}  Ba6 {[%clk 0:02:49]}
7. e3 {[%clk 0:02:48]}  Nc6 {[%clk 0:02:47]} 8. Ba3 {[%clk 0:02:14]}  Na5 {[%clk 0:02:22]} 9. c5 {[%clk 0:01:52]}  Bxf1 {[%clk 0:02:20]}
10. Kxf1 {[%clk 0:01:53]}  d6 {[%clk 0:01:59]} 11. cxd6 {[%clk 0:01:24]}  cxd6 {[%clk 0:01:59]} 12. Qa4+ {[%clk 0:00:58]}  Qd7 {[%clk 0:01:57]}
13. Qxd7+ {[%clk 0:00:58]}  Kxd7 {[%clk 0:01:58]} 14. Nd2 {[%clk 0:00:55]}  Rhc8 {[%clk 0:01:57]} 15. Rc1 {[%clk 0:00:56]}  Nc4 {[%clk 0:01:52]}
16. Nxc4 {[%clk 0:00:51]}  Rxc4 {[%clk 0:01:53]} 17. f3 {[%clk 0:00:46]}  Rac8 {[%clk 0:01:29]} 18. Bb2 {[%clk 0:00:46]}  Nd5 {[%clk 0:01:30]}
19. Kf2 {[%clk 0:00:37]}  Nxc3 {[%clk 0:01:28]} 20. a3 {[%clk 0:00:16]}  Na4 {[%clk 0:01:26]} 21. Rxc4 {[%clk 0:00:13]}  Rxc4 {[%clk 0:01:27]}
22. Rc1 {[%clk 0:00:12]}  Nxb2 {[%clk 0:01:26]} 0-1

[Event "2026 Biel Blitz Open"]
[Site "Biel, CH"]
[Date "2026.07.19"]
[Round "2"]
[White "Alexakis, Dimitris"]
[Black "Mikavica, Dragoljub"]
[Result "1-0"]
[Board "8"]
[TimeControl "180+2"]
[WhiteFideId "4277023"]
[BlackFideId "1308726"]
[WhiteElo "2459"]
[BlackElo "1983"]
[WhiteTitle "GM"]
[WhiteClock "0:02:11"]
[BlackClock "0:01:19"]
[Variant "Standard"]
[EndDate "2026.07.19"]
[EndTime "12:04:24"]

1. e4 {[%clk 0:03:01]}  e5 {[%clk 0:03:00]} 2. Nf3 {[%clk 0:03:01]}  Nc6 {[%clk 0:03:01]} 3. Bb5 {[%clk 0:03:02]}  d6 {[%clk 0:02:50]}
4. d4 {[%clk 0:02:59]}  exd4 {[%clk 0:02:41]} 5. Nxd4 {[%clk 0:02:58]}  Bd7 {[%clk 0:02:42]} 6. O-O {[%clk 0:02:56]}  Nf6 {[%clk 0:02:38]}
7. Re1 {[%clk 0:02:47]}  Ne5 {[%clk 0:02:34]} 8. Bxd7+ {[%clk 0:02:44]}  Qxd7 {[%clk 0:02:29]} 9. Nc3 {[%clk 0:02:43]}  a6 {[%clk 0:02:23]}
10. Bg5 {[%clk 0:02:39]}  Be7 {[%clk 0:02:24]} 11. Nf5 {[%clk 0:02:38]}  Nc6 {[%clk 0:01:56]} 12. Nxg7+ {[%clk 0:02:37]}  Kf8 {[%clk 0:01:58]}
13. Nf5 {[%clk 0:02:32]}  Rg8 {[%clk 0:01:59]} 14. Qd2 {[%clk 0:02:28]}  Ne5 {[%clk 0:01:56]} 15. Kh1 {[%clk 0:02:11]}  Ke8 {[%clk 0:01:44]}
16. Nxe7 {[%clk 0:02:17]}  Qxe7 {[%clk 0:01:28]} 17. Nd5 {[%clk 0:02:13]}  Rxg5 {[%clk 0:01:19]} 18. Nxe7 {[%clk 0:02:11]} 1-0

[Event "2026 Biel Blitz Open"]
[Site "Biel, CH"]
[Date "2026.07.19"]
[Round "2"]
[White "Python, Noe"]
[Black "Arjun Kalyan"]
[Result "0-1"]
[Board "9"]
[TimeControl "180+2"]
[WhiteFideId "1337637"]
[BlackFideId "35018701"]
[WhiteElo "2010"]
[BlackElo "2451"]
[BlackTitle "GM"]
[WhiteClock "0:00:16"]
[BlackClock "0:00:35"]
[Variant "Standard"]
[EndDate "2026.07.19"]
[EndTime "12:11:33"]

1. e4 {[%clk 0:03:04]}  e5 {[%clk 0:03:03]} 2. Nf3 {[%clk 0:03:05]}  Nc6 {[%clk 0:03:04]} 3. Nc3 {[%clk 0:03:06]}  Nf6 {[%clk 0:03:04]}
4. d4 {[%clk 0:03:07]}  exd4 {[%clk 0:03:04]} 5. Nxd4 {[%clk 0:03:08]}  Bc5 {[%clk 0:03:05]} 6. Be3 {[%clk 0:03:09]}  Bb6 {[%clk 0:03:05]}
7. Qd2 {[%clk 0:03:10]}  O-O {[%clk 0:03:03]} 8. O-O-O {[%clk 0:03:10]}  Re8 {[%clk 0:03:04]} 9. f3 {[%clk 0:03:12]}  d5 {[%clk 0:02:53]}
10. Nxc6 {[%clk 0:02:33]}  bxc6 {[%clk 0:02:54]} 11. g4 {[%clk 0:02:01]}  Be6 {[%clk 0:02:33]} 12. g5 {[%clk 0:01:48]}  Nh5 {[%clk 0:02:34]}
13. Bg2 {[%clk 0:01:20]}  d4 {[%clk 0:01:41]} 14. Bxd4 {[%clk 0:01:20]}  Bxd4 {[%clk 0:01:42]} 15. Qxd4 {[%clk 0:01:21]}  Qxg5+ {[%clk 0:01:42]}
16. Qd2 {[%clk 0:01:23]}  Nf4 {[%clk 0:01:37]} 17. h4 {[%clk 0:01:12]}  Qe5 {[%clk 0:01:34]} 18. Bf1 {[%clk 0:01:06]}  Rab8 {[%clk 0:01:35]}
19. Qd4 {[%clk 0:00:39]}  f6 {[%clk 0:01:09]} 20. Qxe5 {[%clk 0:00:24]}  fxe5 {[%clk 0:01:09]} 21. Na4 {[%clk 0:00:23]}  Rbd8 {[%clk 0:01:02]}
22. Ba6 {[%clk 0:00:18]}  Rd6 {[%clk 0:00:49]} 23. Nc5 {[%clk 0:00:17]}  Kf7 {[%clk 0:00:47]} 24. Nb7 {[%clk 0:00:16]}  Rxd1+ {[%clk 0:00:46]}
25. Rxd1 {[%clk 0:00:17]}  Ke7 {[%clk 0:00:42]} 26. Nc5 {[%clk 0:00:18]}  Rf8 {[%clk 0:00:32]} 27. Kd2 {[%clk 0:00:07]}  Ng2 {[%clk 0:00:31]}
28. Nxe6 {[%clk 0:00:06]}  Kxe6 {[%clk 0:00:32]} 29. Bc4+ {[%clk 0:00:07]}  Kf6 {[%clk 0:00:26]} 30. Ke2 {[%clk 0:00:05]}  Ke7 {[%clk 0:00:26]}
31. b3 {[%clk 0:00:03]}  Nxh4 {[%clk 0:00:25]} 32. Rh1 {[%clk 0:00:04]}  g5 {[%clk 0:00:27]} 33. a4 {[%clk 0:00:04]}  h6 {[%clk 0:00:24]}
34. a5 {[%clk 0:00:04]}  Rd8 {[%clk 0:00:24]} 35. a6 {[%clk 0:00:01]}  c5 {[%clk 0:00:24]} 36. Ra1 {[%clk 0:00:06]}  Ng6 {[%clk 0:00:22]}
37. Ra5 {[%clk 0:00:07]}  Nf4+ {[%clk 0:00:22]} 38. Ke3 {[%clk 0:00:06]}  Kd6 {[%clk 0:00:24]} 39. Rb5 {[%clk 0:00:07]}  c6 {[%clk 0:00:22]}
40. Rb7 {[%clk 0:00:07]}  Rd7 {[%clk 0:00:23]} 41. Rb8 {[%clk 0:00:07]}  Kc7 {[%clk 0:00:24]} 42. Rh8 {[%clk 0:00:07]}  h5 {[%clk 0:00:23]}
43. Bf1 {[%clk 0:00:02]}  Rg7 {[%clk 0:00:23]} 44. Bc4 {[%clk 0:00:03]}  g4 {[%clk 0:00:24]} 45. fxg4 {[%clk 0:00:03]}  hxg4 {[%clk 0:00:26]}
46. Rh1 {[%clk 0:00:03]}  g3 {[%clk 0:00:27]} 47. Rg1 {[%clk 0:00:04]}  g2 {[%clk 0:00:25]} 48. Bf1 {[%clk 0:00:02]}  gxf1=Q {[%clk 0:00:20]}
49. Rxf1 {[%clk 0:00:04]}  Kb6 {[%clk 0:00:23]} 50. Rd1 {[%clk 0:00:03]}  Kxa6 {[%clk 0:00:23]} 51. Rd6 {[%clk 0:00:05]}  Kb6 {[%clk 0:00:24]}
52. Rf6 {[%clk 0:00:05]}  Rg2 {[%clk 0:00:25]} 53. c4 {[%clk 0:00:06]}  Rg3+ {[%clk 0:00:25]} 54. Kd2 {[%clk 0:00:07]}  Rxb3 {[%clk 0:00:26]}
55. Rf5 {[%clk 0:00:09]}  Rd3+ {[%clk 0:00:25]} 56. Kc2 {[%clk 0:00:10]}  Rd4 {[%clk 0:00:26]} 57. Kc3 {[%clk 0:00:09]}  Rxe4 {[%clk 0:00:25]}
58. Rf7 {[%clk 0:00:09]}  Re3+ {[%clk 0:00:25]} 59. Kb2 {[%clk 0:00:11]}  a5 {[%clk 0:00:27]} 60. Ka2 {[%clk 0:00:11]}  a4 {[%clk 0:00:28]}
61. Kb2 {[%clk 0:00:13]}  Ne6 {[%clk 0:00:28]} 62. Re7 {[%clk 0:00:13]}  Nd4 {[%clk 0:00:29]} 63. Ka2 {[%clk 0:00:15]}  e4 {[%clk 0:00:30]}
64. Re8 {[%clk 0:00:15]}  Ka5 {[%clk 0:00:31]} 65. Kb2 {[%clk 0:00:16]}  Kb4 {[%clk 0:00:32]} 66. Ka2 {[%clk 0:00:16]}  Re2+ {[%clk 0:00:32]}
67. Kb1 {[%clk 0:00:17]}  a3 {[%clk 0:00:33]} 68. Ka1 {[%clk 0:00:18]}  Nb3+ {[%clk 0:00:34]} 69. Kb1 {[%clk 0:00:16]}  Rb2# {[%clk 0:00:35]} 0-1

[Event "2026 Biel Blitz Open"]
[Site "Biel, CH"]
[Date "2026.07.19"]
[Round "2"]
[White "Elmi, Saad Abobaker"]
[Black "Kwiatkowski, Maciej"]
[Result "1-0"]
[Board "10"]
[TimeControl "180+2"]
[WhiteFideId "1553259"]
[BlackFideId "1360175"]
[WhiteElo "2409"]
[BlackElo "1967"]
[WhiteTitle "IM"]
[WhiteClock "0:00:32"]
[BlackClock "0:00:03"]
[Variant "Standard"]
[EndDate "2026.07.19"]
[EndTime "12:09:59"]

1. Nf3 {[%clk 0:03:03]}  d5 {[%clk 0:03:02]} 2. e3 {[%clk 0:03:04]}  Nf6 {[%clk 0:03:01]} 3. c4 {[%clk 0:03:05]}  e6 {[%clk 0:03:01]}
4. Nc3 {[%clk 0:03:06]}  Be7 {[%clk 0:03:02]} 5. b3 {[%clk 0:03:07]}  O-O {[%clk 0:03:01]} 6. Bb2 {[%clk 0:03:08]}  c5 {[%clk 0:02:54]}
7. cxd5 {[%clk 0:03:07]}  exd5 {[%clk 0:02:54]} 8. d4 {[%clk 0:03:08]}  Nc6 {[%clk 0:02:50]} 9. Be2 {[%clk 0:03:09]}  Bg4 {[%clk 0:02:44]}
10. dxc5 {[%clk 0:03:06]}  Bxc5 {[%clk 0:02:44]} 11. O-O {[%clk 0:03:06]}  Re8 {[%clk 0:02:27]} 12. Rc1 {[%clk 0:03:04]}  Bd6 {[%clk 0:01:40]}
13. h3 {[%clk 0:03:02]}  Bh5 {[%clk 0:01:40]} 14. Nh4 {[%clk 0:03:03]}  Bg6 {[%clk 0:01:30]} 15. Nxg6 {[%clk 0:03:00]}  hxg6 {[%clk 0:01:31]}
16. Bf3 {[%clk 0:02:55]}  Ne7 {[%clk 0:01:11]} 17. Nb5 {[%clk 0:02:53]}  Bb8 {[%clk 0:01:08]} 18. Qc2 {[%clk 0:02:51]}  a6 {[%clk 0:01:07]}
19. Nc7 {[%clk 0:02:52]}  Bxc7 {[%clk 0:01:03]} 20. Qxc7 {[%clk 0:02:52]}  Rc8 {[%clk 0:00:46]} 21. Qxb7 {[%clk 0:02:52]}  Rxc1 {[%clk 0:00:38]}
22. Rxc1 {[%clk 0:02:53]}  Qa5 {[%clk 0:00:36]} 23. Bxf6 {[%clk 0:02:03]}  gxf6 {[%clk 0:00:36]} 24. a4 {[%clk 0:01:57]}  Kf8 {[%clk 0:00:36]}
25. Rd1 {[%clk 0:01:49]}  Qc3 {[%clk 0:00:31]} 26. Bxd5 {[%clk 0:01:45]}  Qc2 {[%clk 0:00:27]} 27. Bf3 {[%clk 0:01:44]}  Qc3 {[%clk 0:00:27]}
28. Qxa6 {[%clk 0:01:39]}  Qxb3 {[%clk 0:00:26]} 29. Qb5 {[%clk 0:01:39]}  Qc3 {[%clk 0:00:26]} 30. a5 {[%clk 0:01:38]}  Nf5 {[%clk 0:00:17]}
31. a6 {[%clk 0:01:40]}  Nh4 {[%clk 0:00:18]} 32. Bc6 {[%clk 0:01:29]}  Re7 {[%clk 0:00:18]} 33. Bb7 {[%clk 0:01:17]}  Qa3 {[%clk 0:00:18]}
34. Qb6 {[%clk 0:01:06]}  Qa4 {[%clk 0:00:12]} 35. Rb1 {[%clk 0:00:58]}  Rd7 {[%clk 0:00:08]} 36. a7 {[%clk 0:00:46]}  Rd1+ {[%clk 0:00:09]}
37. Rxd1 {[%clk 0:00:44]}  Qxd1+ {[%clk 0:00:10]} 38. Kh2 {[%clk 0:00:45]}  Qe1 {[%clk 0:00:06]} 39. a8=Q+ {[%clk 0:00:44]}  Kg7 {[%clk 0:00:07]}
40. Qbd8 {[%clk 0:00:38]}  Kh6 {[%clk 0:00:04]} 41. Qxf6 {[%clk 0:00:32]}  Nf5 {[%clk 0:00:03]} 42. Qah8# {[%clk 0:00:32]} 1-0

[Event "2026 Biel Blitz Open"]
[Site "Biel, CH"]
[Date "2026.07.19"]
[Round "2"]
[White "Dietiker, Manuel"]
[Black "Thorfinnsson, Bjorn"]
[Result "0-1"]
[Board "11"]
[TimeControl "180+2"]
[WhiteFideId "1317377"]
[BlackFideId "2300982"]
[WhiteElo "2002"]
[BlackElo "2396"]
[BlackTitle "IM"]
[WhiteClock "0:00:05"]
[BlackClock "0:00:25"]
[Variant "Standard"]
[EndDate "2026.07.19"]
[EndTime "12:08:36"]

1. e4 {[%clk 0:03:01]}  e5 {[%clk 0:03:04]} 2. Nf3 {[%clk 0:03:02]}  Nc6 {[%clk 0:03:05]} 3. Nc3 {[%clk 0:03:02]}  Nf6 {[%clk 0:03:06]}
4. d4 {[%clk 0:03:03]}  exd4 {[%clk 0:03:06]} 5. Nd5 {[%clk 0:03:04]}  Be7 {[%clk 0:02:58]} 6. Nxd4 {[%clk 0:03:01]}  d6 {[%clk 0:02:26]}
7. Nb5 {[%clk 0:02:55]}  Nxd5 {[%clk 0:02:20]} 8. exd5 {[%clk 0:02:55]}  Ne5 {[%clk 0:02:21]} 9. f4 {[%clk 0:02:51]}  Ng6 {[%clk 0:02:22]}
10. Be2 {[%clk 0:02:48]}  O-O {[%clk 0:02:18]} 11. O-O {[%clk 0:02:45]}  c6 {[%clk 0:02:11]} 12. dxc6 {[%clk 0:02:20]}  bxc6 {[%clk 0:02:13]}
13. Nd4 {[%clk 0:02:21]}  Bf6 {[%clk 0:02:14]} 14. c3 {[%clk 0:02:15]}  Bd7 {[%clk 0:01:52]} 15. Bf3 {[%clk 0:02:11]}  Rb8 {[%clk 0:01:47]}
16. Kh1 {[%clk 0:02:07]}  d5 {[%clk 0:01:32]} 17. Qc2 {[%clk 0:02:00]}  Qc7 {[%clk 0:01:31]} 18. g3 {[%clk 0:01:47]}  Rfd8 {[%clk 0:01:25]}
19. Bd2 {[%clk 0:01:44]}  c5 {[%clk 0:01:24]} 20. Nf5 {[%clk 0:01:38]}  Bxf5 {[%clk 0:01:17]} 21. Qxf5 {[%clk 0:01:38]}  Rxb2 {[%clk 0:01:17]}
22. Rfd1 {[%clk 0:01:26]}  Rxd2 {[%clk 0:01:14]} 23. Rxd2 {[%clk 0:01:22]}  Bxc3 {[%clk 0:01:15]} 24. Rdd1 {[%clk 0:00:37]}  Bxa1 {[%clk 0:01:14]}
25. Rxa1 {[%clk 0:00:38]}  Ne7 {[%clk 0:01:08]} 26. Qd3 {[%clk 0:00:35]}  Nc8 {[%clk 0:00:57]} 27. Re1 {[%clk 0:00:35]}  Nb6 {[%clk 0:00:45]}
28. Qb5 {[%clk 0:00:23]}  g6 {[%clk 0:00:43]} 29. a4 {[%clk 0:00:23]}  d4 {[%clk 0:00:33]} 30. a5 {[%clk 0:00:15]}  Nc8 {[%clk 0:00:34]}
31. Re8+ {[%clk 0:00:08]}  Rxe8 {[%clk 0:00:32]} 32. Qxe8+ {[%clk 0:00:09]}  Kg7 {[%clk 0:00:33]} 33. Bd5 {[%clk 0:00:06]}  d3 {[%clk 0:00:31]}
34. Qe4 {[%clk 0:00:07]}  d2 {[%clk 0:00:28]} 35. Qc2 {[%clk 0:00:06]}  Qxa5 {[%clk 0:00:23]} 36. Bf3 {[%clk 0:00:06]}  Qa1+ {[%clk 0:00:22]}
37. Kg2 {[%clk 0:00:07]}  Qd4 {[%clk 0:00:23]} 38. Qa2 {[%clk 0:00:06]}  Nd6 {[%clk 0:00:24]} 39. Bd1 {[%clk 0:00:07]}  Nf5 {[%clk 0:00:24]}
40. Qxa7 {[%clk 0:00:07]}  Ne3+ {[%clk 0:00:25]} 41. Kh3 {[%clk 0:00:08]}  Nxd1 {[%clk 0:00:26]} 42. Qe7 {[%clk 0:00:04]}  Nf2+ {[%clk 0:00:25]}
43. Kg2 {[%clk 0:00:05]}  d1=Q {[%clk 0:00:25]} 0-1

[Event "2026 Biel Blitz Open"]
[Site "Biel, CH"]
[Date "2026.07.19"]
[Round "2"]
[White "Shukhman, Anna"]
[Black "Vihaan Dumir"]
[Result "1-0"]
[Board "12"]
[TimeControl "180+2"]
[WhiteFideId "54180058"]
[BlackFideId "25901010"]
[WhiteElo "2392"]
[BlackElo "1965"]
[WhiteTitle "WGM"]
[BlackTitle "CM"]
[WhiteClock "0:00:10"]
[BlackClock "0:00:26"]
[Variant "Standard"]
[EndDate "2026.07.19"]
[EndTime "12:08:40"]

1. e4 {[%clk 0:03:03]}  c5 {[%clk 0:03:04]} 2. Nf3 {[%clk 0:03:04]}  e6 {[%clk 0:03:05]} 3. d4 {[%clk 0:03:05]}  cxd4 {[%clk 0:03:06]}
4. Nxd4 {[%clk 0:03:06]}  Nf6 {[%clk 0:03:06]} 5. Bd3 {[%clk 0:03:06]}  Nc6 {[%clk 0:03:07]} 6. Nxc6 {[%clk 0:03:04]}  dxc6 {[%clk 0:03:06]}
7. Nd2 {[%clk 0:03:01]}  e5 {[%clk 0:02:57]} 8. O-O {[%clk 0:03:00]}  Bd6 {[%clk 0:02:55]} 9. h3 {[%clk 0:03:00]}  O-O {[%clk 0:02:51]}
10. Qe2 {[%clk 0:03:00]}  Qe7 {[%clk 0:02:42]} 11. a4 {[%clk 0:03:01]}  Be6 {[%clk 0:02:37]} 12. Bc4 {[%clk 0:03:02]}  Nd7 {[%clk 0:02:35]}
13. Rd1 {[%clk 0:02:49]}  Rfd8 {[%clk 0:02:32]} 14. Bxe6 {[%clk 0:02:17]}  Qxe6 {[%clk 0:02:33]} 15. Qc4 {[%clk 0:02:18]}  Qe7 {[%clk 0:02:29]}
16. Nf3 {[%clk 0:02:17]}  h6 {[%clk 0:02:22]} 17. Be3 {[%clk 0:02:07]}  Nf8 {[%clk 0:02:16]} 18. Rd3 {[%clk 0:01:58]}  Ne6 {[%clk 0:02:12]}
19. Rad1 {[%clk 0:01:57]}  c5 {[%clk 0:00:59]} 20. c3 {[%clk 0:01:39]}  b6 {[%clk 0:00:53]} 21. Rd5 {[%clk 0:01:23]}  Bc7 {[%clk 0:00:49]}
22. Qa6 {[%clk 0:01:13]}  Rxd5 {[%clk 0:00:37]} 23. Rxd5 {[%clk 0:01:13]}  Rd8 {[%clk 0:00:34]} 24. Qxa7 {[%clk 0:00:51]}  Rxd5 {[%clk 0:00:34]}
25. exd5 {[%clk 0:00:52]}  e4 {[%clk 0:00:31]} 26. Qa8+ {[%clk 0:00:53]}  Nf8 {[%clk 0:00:32]} 27. Nd2 {[%clk 0:00:52]}  Qe5 {[%clk 0:00:33]}
28. Nf1 {[%clk 0:00:45]}  f5 {[%clk 0:00:32]} 29. g3 {[%clk 0:00:35]}  g5 {[%clk 0:00:32]} 30. a5 {[%clk 0:00:22]}  f4 {[%clk 0:00:31]}
31. axb6 {[%clk 0:00:21]}  Bxb6 {[%clk 0:00:26]} 32. Bc1 {[%clk 0:00:21]}  fxg3 {[%clk 0:00:25]} 33. Nxg3 {[%clk 0:00:22]}  c4 {[%clk 0:00:26]}
34. Kg2 {[%clk 0:00:22]}  e3 {[%clk 0:00:26]} 35. Qc6 {[%clk 0:00:09]}  Qf4 {[%clk 0:00:28]} 36. Bxe3 {[%clk 0:00:09]}  Bxe3 {[%clk 0:00:28]}
37. fxe3 {[%clk 0:00:10]}  Qxe3 {[%clk 0:00:29]} 38. Qxc4 {[%clk 0:00:11]}  Qd2+ {[%clk 0:00:29]} 39. Kf3 {[%clk 0:00:08]}  Ng6 {[%clk 0:00:29]}
40. d6+ {[%clk 0:00:08]}  Kf8 {[%clk 0:00:26]} 41. Qc8+ {[%clk 0:00:08]}  Kg7 {[%clk 0:00:26]} 42. Nh5+ {[%clk 0:00:08]}  Kf7 {[%clk 0:00:24]}
43. Qd7+ {[%clk 0:00:08]}  Kf8 {[%clk 0:00:24]} 44. Qg7+ {[%clk 0:00:08]}  Ke8 {[%clk 0:00:25]} 45. Nf6+ {[%clk 0:00:09]}  Kd8 {[%clk 0:00:26]}
46. Qd7# {[%clk 0:00:10]} 1-0

[Event "2026 Biel Blitz Open"]
[Site "Biel, CH"]
[Date "2026.07.19"]
[Round "2"]
[White "Haugner, Jan"]
[Black "Haimovich, Tal"]
[Result "1-0"]
[Board "13"]
[TimeControl "180+2"]
[WhiteFideId "24655244"]
[BlackFideId "2801698"]
[WhiteElo "1976"]
[BlackElo "2347"]
[BlackTitle "IM"]
[WhiteClock "0:00:15"]
[BlackClock "0:00:09"]
[Variant "Standard"]
[EndDate "2026.07.19"]
[EndTime "12:10:29"]

1. e4 {[%clk 0:03:02]}  d5 {[%clk 0:03:03]} 2. exd5 {[%clk 0:03:03]}  Qxd5 {[%clk 0:03:04]} 3. Nc3 {[%clk 0:03:04]}  Qd8 {[%clk 0:03:05]}
4. d4 {[%clk 0:03:05]}  Nf6 {[%clk 0:03:06]} 5. Bc4 {[%clk 0:03:04]}  e6 {[%clk 0:03:07]} 6. Nf3 {[%clk 0:03:04]}  Be7 {[%clk 0:03:07]}
7. Bg5 {[%clk 0:02:57]}  Nbd7 {[%clk 0:03:07]} 8. Qd2 {[%clk 0:02:54]}  a6 {[%clk 0:03:07]} 9. O-O-O {[%clk 0:02:23]}  b5 {[%clk 0:02:53]}
10. Be2 {[%clk 0:02:04]}  O-O {[%clk 0:02:37]} 11. Ne5 {[%clk 0:01:33]}  Bb7 {[%clk 0:02:36]} 12. Bd3 {[%clk 0:01:25]}  b4 {[%clk 0:02:10]}
13. Ne2 {[%clk 0:01:22]}  Nxe5 {[%clk 0:02:01]} 14. dxe5 {[%clk 0:01:22]}  Nd5 {[%clk 0:02:02]} 15. Bxe7 {[%clk 0:01:07]}  Qxe7 {[%clk 0:02:03]}
16. Ng3 {[%clk 0:00:56]}  a5 {[%clk 0:01:58]} 17. h4 {[%clk 0:00:55]}  a4 {[%clk 0:01:55]} 18. Qg5 {[%clk 0:00:49]}  a3 {[%clk 0:01:33]}
19. b3 {[%clk 0:00:38]}  Qxg5+ {[%clk 0:01:11]} 20. hxg5 {[%clk 0:00:40]}  g6 {[%clk 0:01:12]} 21. Ne4 {[%clk 0:00:39]}  Kg7 {[%clk 0:00:52]}
22. Bc4 {[%clk 0:00:36]}  h5 {[%clk 0:00:42]} 23. gxh6+ {[%clk 0:00:36]}  Kh8 {[%clk 0:00:42]} 24. Bxd5 {[%clk 0:00:36]}  Bxd5 {[%clk 0:00:42]}
25. Nf6 {[%clk 0:00:36]}  Bxg2 {[%clk 0:00:41]} 26. Rhg1 {[%clk 0:00:33]}  Bc6 {[%clk 0:00:40]} 27. Rd4 {[%clk 0:00:27]}  Rab8 {[%clk 0:00:39]}
28. Rgg4 {[%clk 0:00:27]}  Bb5 {[%clk 0:00:24]} 29. Rxb4 {[%clk 0:00:27]}  c5 {[%clk 0:00:25]} 30. Rbe4 {[%clk 0:00:20]}  Rbd8 {[%clk 0:00:26]}
31. c4 {[%clk 0:00:19]}  Bc6 {[%clk 0:00:26]} 32. Re3 {[%clk 0:00:19]}  Rb8 {[%clk 0:00:16]} 33. Rg1 {[%clk 0:00:18]}  Rfd8 {[%clk 0:00:15]}
34. Rd1 {[%clk 0:00:19]}  Rxd1+ {[%clk 0:00:13]} 35. Kxd1 {[%clk 0:00:20]}  Bg2 {[%clk 0:00:11]} 36. Rd3 {[%clk 0:00:19]}  Bh3 {[%clk 0:00:10]}
37. Kd2 {[%clk 0:00:20]}  Bf5 {[%clk 0:00:10]} 38. Rd7 {[%clk 0:00:21]}  Rf8 {[%clk 0:00:09]} 39. Kc3 {[%clk 0:00:20]}  Bb1 {[%clk 0:00:09]}
40. Rd2 {[%clk 0:00:21]}  Rb8 {[%clk 0:00:09]} 41. f4 {[%clk 0:00:20]}  Bf5 {[%clk 0:00:08]} 42. Rd6 {[%clk 0:00:10]}  Bb1 {[%clk 0:00:08]}
43. Rd2 {[%clk 0:00:12]}  Rc8 {[%clk 0:00:07]} 44. b4 {[%clk 0:00:10]}  cxb4+ {[%clk 0:00:07]} 45. Kxb4 {[%clk 0:00:12]}  Ra8 {[%clk 0:00:06]}
46. c5 {[%clk 0:00:12]}  Bf5 {[%clk 0:00:04]} 47. c6 {[%clk 0:00:13]}  Rc8 {[%clk 0:00:04]} 48. Kc5 {[%clk 0:00:14]}  Bh3 {[%clk 0:00:04]}
49. Kb6 {[%clk 0:00:13]}  Rb8+ {[%clk 0:00:04]} 50. Kc7 {[%clk 0:00:13]}  Ra8 {[%clk 0:00:05]} 51. Rd8+ {[%clk 0:00:13]}  Rxd8 {[%clk 0:00:05]}
52. Kxd8 {[%clk 0:00:14]}  Bg2 {[%clk 0:00:05]} 53. c7 {[%clk 0:00:16]}  Bb7 {[%clk 0:00:05]} 54. Ke7 {[%clk 0:00:11]}  Bc8 {[%clk 0:00:03]}
55. Kxf7 {[%clk 0:00:11]}  Bb7 {[%clk 0:00:03]} 56. Kxg6 {[%clk 0:00:10]}  Bc8 {[%clk 0:00:03]} 57. Kf7 {[%clk 0:00:11]}  Bb7 {[%clk 0:00:04]}
58. Kxe6 {[%clk 0:00:12]}  Bc8+ {[%clk 0:00:05]} 59. Ke7 {[%clk 0:00:13]}  Bb7 {[%clk 0:00:06]} 60. e6 {[%clk 0:00:14]}  Bc8 {[%clk 0:00:06]}
61. f5 {[%clk 0:00:14]}  Bxe6 {[%clk 0:00:06]} 62. h7 {[%clk 0:00:07]}  Bxf5 {[%clk 0:00:06]} 63. Kd8 {[%clk 0:00:10]}  Be6 {[%clk 0:00:06]}
64. c8=Q {[%clk 0:00:10]}  Bxc8 {[%clk 0:00:06]} 65. Kxc8 {[%clk 0:00:11]}  Kg7 {[%clk 0:00:07]} 66. Kb7 {[%clk 0:00:12]}  Kh8 {[%clk 0:00:08]}
67. Kb6 {[%clk 0:00:14]}  Kg7 {[%clk 0:00:09]} 68. Kb5 {[%clk 0:00:15]} 1-0